[Event "3rd Gujarat GM Open 2022"]
[Site "Ahmedabad"]
[Date "2022.04.07"]
[Round "10.17"]
[White "Viani Antonio Dcunha"]
[Black "Aaryan Varshney"]
[Result "0-1"]
[ECO "B90"]
[WhiteElo "2397"]
[BlackElo "2277"]
[Annotator "TA"]
[PlyCount "120"]
[EventDate "2022.03.31"]
[EventType "swiss"]
[EventCountry "IND"]
[SourceTitle "playchess.com"]
[Source "ChessBase"]
[SourceQuality "1"]
[TimeControl "5400+30"]

{[%evp 69,120,-219,-135,-148,-135,-173,-86,-92,-92,-81,-80,-120,-89,-547,-530,-658,260,-645,-639,-1000,-814,-1037,-986,-1056,-1045,-1004,-890,-1034,-1005,-1000,-983,-1603,-1397,-29967,-29970,-29969,-29970,-29969,-29970,-29972,-29973,-29973,-29974,-29974,-29974,-29973,-29974,-29978,-29979,-29979,-29980,-29979,-29974]} 1. e4 {[%emt 0:00:49]} c5 {[%emt 0:00:08]} 2. Nf3 {[%emt 0:00:06]} d6 {[%emt 0:00:04]} 3. d4 {[%emt 0:00:08]} cxd4 {[%emt 0:00:05]} 4. Nxd4 {[%emt 0:00:09]} Nf6 {[%emt 0:00:05]} 5. Nc3 {[%emt 0:00:09]} a6 {[%emt 0:00:02]} 6. Be3 {[%emt 0:00:12]} e5 {[%emt 0:00:08]} 7. Nb3 {[%emt 0:00:06]} Be6 {[%emt 0:00:05]} 8. f3 {[%emt 0:00:17]} Be7 {[%emt 0:00:04]} 9. Qd2 {[%emt 0:00:25]} O-O {[%emt 0:00:06]} 10. O-O-O {[%emt 0:00:51]} Nbd7 {[%emt 0:00:04]} 11. g4 {[%emt 0:01:21]} b5 {[%emt 0:00:09]} 12. g5 {[%emt 0:00:39]} Nh5 {[%emt 0:00:08]} 13. Nd5 {[%emt 0:01:32]} Bxd5 {[%emt 0:00:14]} 14. exd5 {[%emt 0:00:12]} f6 {[%emt 0:00:14]} 15. g6 {[%emt 0:00:16]} hxg6 {[%emt 0:16:36]} 16. Na5 {[%emt 0:00:20]} f5 {[%emt 0:05:00]} 17. Nc6 {[%emt 0:01:16]} Qe8 {[%emt 0:00:14]} 18. Rg1 {[%emt 0:02:03]} Kh7 {[%emt 0:01:34]} 19. Kb1 {[%emt 0:03:16]} Bd8 {[%emt 0:06:52]} 20. Qb4 {[%emt 0:03:52]} Bb6 {[%emt 0:01:14]} 21. Bxb6 {[%emt 0:08:31]} Nxb6 {[%emt 1:07:54]} 22. c4 {[%emt 0:00:32]} Nxc4 {[%emt 0:00:00]} 23. Bxc4 {[%emt 0:00:18]} bxc4 {[%emt 0:00:00]} 24. Qxd6 {[%emt 0:00:28]} e4 {[%emt 0:00:00]} 25. Rge1 {[%emt 0:10:59]} Nf6 {[%emt 0:00:00]} 26. Re3 {[%emt 0:13:23]} f4 {[%emt 0:00:00]} 27. Ree1 {[%emt 0:07:27]} g5 {[%emt 0:00:00]} 28. h4 {[%emt 0:07:13]} g4 {[%emt 0:00:00]} 29. Qxf4 {[%emt 0:09:11]} gxf3 {[%emt 0:00:00]} 30. Ne5 {[%emt 0:05:14]} Qh5 {[%emt 0:00:00]} 31. Nxc4 {[%emt 0:01:26]} Rae8 {[%emt 0:00:00]} 32. Ne3 {[%emt 0:05:56]} Qe5 {[%emt 0:00:00]} 33. Qxe5 {[%emt 0:03:33]} Rxe5 {[%emt 0:00:00]} 34. Kc2 {[%emt 0:01:56]} Rc8+ {[%emt 0:00:00]} 35. Kb3 {[%emt 0:00:28]} Nd7 {[%emt 0:00:00]} 36. Rc1 {[%emt 0:01:38]} Ree8 {[%emt 0:00:00]} 37. Rc4 {[%emt 0:01:21] [#]} Nf6 {[%emt 0:00:00]} (37... Ne5 $1 $19 {[%cal Re5c4] and Black stays clearly on top.} 38. Rxc8 (38. Rxe4 $2 Nd3 $19) 38... Rxc8) 38. Kc3 $17 {[%emt 0:00:39]} Rcd8 {[%emt 0:00:09]} 39. Rc5 {[%emt 0:01:31]} Nh5 {[%emt 0:00:31]} 40. Kd4 {[%emt 0:04:26]} Nf4 {[%emt 0:00:25]} 41. b4 $2 {[%emt 0:01:11][%mdl 8192]} (41. Rc2 $17 {was the crucial defense.}) 41... f2 $19 {[%emt 0:01:50]} 42. Rf1 {[%emt 0:00:05]} Ne2+ {[%emt 0:00:21]} 43. Kc4 {[%emt 0:00:04]} Rf8 {[%emt 0:00:08]} 44. Ng4 {[%emt 0:00:18]} Rf3 {[%emt 0:00:44]} 45. d6 {[%emt 0:01:04]} Rxd6 {[%emt 0:00:14]} 46. Rh5+ {[%emt 0:00:22]} Kg8 {[%emt 0:00:08]} 47. Kc5 {[%emt 0:00:36]} Rdf6 {[%emt 0:03:19]} 48. Re5 {[%emt 0:04:26]} Ng3 {[%emt 0:00:37]} 49. Rxf2 {[%emt 0:00:27]} Rxf2 {[%emt 0:00:13]} 50. Nxf2 {[%emt 0:00:06]} Rxf2 {[%emt 0:00:06]} 51. a4 {[%emt 0:00:36]} Rf5 {[%emt 0:01:55]} 52. Rxf5 {[%emt 0:00:21]} Nxf5 {[%emt 0:00:03]} 53. b5 {[%emt 0:00:54]} axb5 {[%emt 0:00:15]} 54. axb5 {[%emt 0:00:17]} e3 {[%emt 0:00:04]} 55. b6 {[%emt 0:00:02]} e2 {[%emt 0:00:04]} 56. b7 {[%emt 0:00:03]} e1=Q {[%emt 0:00:05]} 57. b8=Q+ {[%emt 0:00:07]} Kh7 {[%emt 0:00:09]} 58. h5 {[%emt 0:00:18]} Qc3+ {[%emt 0:00:43]} 59. Kd5 {[%emt 0:00:04]} Qd4+ {[%emt 0:00:14]} 60. Ke6 {[%emt 0:00:03]} Qe4+ {[%emt 0:07:13]} 0-1

[Event "3rd Gujarat GM Open 2022"]
[Site "Ahmedabad"]
[Date "2022.04.07"]
[Round "10.18"]
[White "Rajesh, V A V"]
[Black "Sahib Singh"]
[Result "1/2-1/2"]
[ECO "D36"]
[WhiteElo "2376"]
[BlackElo "1792"]
[Annotator "TA"]
[PlyCount "135"]
[EventDate "2022.03.31"]
[EventType "swiss"]
[EventCountry "IND"]
[SourceTitle "playchess.com"]
[Source "ChessBase"]
[SourceQuality "1"]
[TimeControl "5400+30"]

{[%evp 71,135,93,90,50,72,73,75,71,97,78,140,142,167,167,172,171,178,168,255,182,190,105,153,144,219,204,206,55,55,0,92,35,29,0,0,0,8,8,8,8,8,8,8,0,0,0,0,0,0,0,0,0,0,0,0,0,0,0,0,0,0,0,0,0,0,0]} 1. d4 {[%emt 0:05:04]} d5 {[%emt 0:01:58]} 2. c4 {[%emt 0:00:07]} e6 {[%emt 0:00:06]} 3. Nc3 {[%emt 0:00:08]} Nf6 {[%emt 0:00:07]} 4. cxd5 {[%emt 0:00:18]} exd5 {[%emt 0:00:07]} 5. Bg5 {[%emt 0:00:06]} c6 {[%emt 0:00:08]} 6. Qc2 {[%emt 0:00:22]} Be7 {[%emt 0:00:07]} 7. e3 {[%emt 0:00:10]} h6 {[%emt 0:00:11]} 8. Bh4 {[%emt 0:00:10]} Nbd7 {[%emt 0:01:27]} 9. Bd3 {[%emt 0:00:08]} Nh5 {[%emt 0:00:11]} 10. Bxe7 {[%emt 0:00:42]} Qxe7 {[%emt 0:00:05]} 11. Nge2 {[%emt 0:00:39]} Nb6 {[%emt 0:00:09]} 12. O-O {[%emt 0:01:51]} O-O {[%emt 0:00:25]} 13. Rae1 {[%emt 0:01:43]} Nf6 {[%emt 0:11:11]} 14. Ng3 {[%emt 0:01:41]} Be6 {[%emt 0:04:02]} 15. Nce2 {[%emt 0:00:59]} h5 {[%emt 0:16:06]} 16. Nf4 {[%emt 0:02:50]} h4 {[%emt 0:02:09]} 17. Nxe6 {[%emt 0:00:37]} fxe6 {[%emt 0:00:33]} 18. Ne2 {[%emt 0:00:09]} e5 {[%emt 0:01:38]} 19. dxe5 {[%emt 0:00:22]} Qxe5 {[%emt 0:01:24]} 20. Nf4 {[%emt 0:00:07]} Rfe8 {[%emt 0:16:07]} 21. Bg6 {[%emt 0:03:00]} Re7 {[%emt 0:00:42]} 22. Bf5 {[%emt 0:00:54]} Qd6 {[%emt 0:09:08]} 23. Ng6 {[%emt 0:01:37]} Ree8 {[%emt 0:02:34]} 24. Nxh4 {[%emt 0:01:13]} Qb4 {[%emt 0:01:21]} 25. Nf3 {[%emt 0:02:18]} Nc4 {[%emt 0:01:01]} 26. b3 {[%emt 0:01:14]} Nd6 {[%emt 0:00:09]} 27. Bg6 {[%emt 0:00:30]} Re7 {[%emt 0:01:15]} 28. Rd1 {[%emt 0:00:55]} Nfe4 {[%emt 0:04:11]} 29. Rd4 {[%emt 0:02:33]} Qa5 {[%emt 0:05:43]} 30. Nd2 {[%emt 0:01:51]} Nf6 {[%emt 0:02:39]} 31. Rh4 {[%emt 0:00:39]} Nf7 {[%emt 0:04:10]} 32. Nf3 {[%emt 0:00:50]} Qc7 {[%emt 0:03:55]} 33. Qf5 {[%emt 0:07:49]} Qc8 {[%emt 0:01:58]} 34. Bxf7+ {[%emt 0:00:25]} Rxf7 {[%emt 0:00:19]} 35. Qxc8+ {[%emt 0:00:04]} Rxc8 {[%emt 0:00:06]} 36. Ne5 {[%emt 0:00:07]} Re7 {[%emt 0:00:22]} 37. f4 {[%emt 0:07:37]} Nd7 {[%emt 0:01:26]} 38. Nxd7 {[%emt 0:05:50]} (38. Ng6 {seems wilder.} Ree8 39. Re1 Kf7 40. Rg4) 38... Rxd7 {[%emt 0:00:04]} 39. Rd1 {[%emt 0:01:45]} c5 {[%emt 0:04:32]} 40. Rh5 {[%emt 0:00:25]} Rcd8 {[%emt 0:00:02]} (40... d4 $142) 41. Kf2 $16 {[%emt 0:06:41]} b5 {[%emt 0:03:04]} 42. Ke2 {[%emt 0:00:28]} c4 {[%emt 0:00:44]} 43. bxc4 {[%emt 0:00:30]} bxc4 {[%emt 0:00:15]} 44. g3 {[%emt 0:06:44]} Rb8 {[%emt 0:03:58]} (44... d4 {was called for.}) 45. Rd2 {[%emt 0:00:10]} ({Much less strong is} 45. Rhxd5 Rxd5 46. Rxd5 Rb2+ 47. Kf3 Rxa2 $18) 45... Rb5 {[%emt 0:00:39]} 46. Rc2 {[%emt 0:05:54]} (46. Re5 $18) 46... a6 {[%emt 0:00:14]} ({Black should play} 46... Ra5) 47. Re5 $16 {[%emt 0:00:30]} Rdb7 {[%emt 0:00:46]} (47... Rb4 $16 48. Rd2 c3) 48. Kd2 {[%emt 0:00:20]} Kf7 {[%emt 0:00:30]} 49. Kc3 $2 {[%emt 0:00:29]} ({Better is} 49. a4 $18 Rc5 50. e4) 49... Ra5 $1 $14 {[%emt 0:00:03]} 50. Kd2 {[%emt 0:14:54]} (50. e4 $14 Ra3+ 51. Kd2) 50... Rbb5 {[%emt 0:00:56]} (50... Rab5 $11) 51. e4 {[%emt 0:09:06]} (51. Rf5+ $16 Kg6 52. g4) 51... d4 $1 $14 {[%emt 0:00:30]} 52. Rxc4 {[%emt 0:00:07]} (52. Rf5+ $5 Rxf5 53. exf5 $14) 52... Rxa2+ {[%emt 0:00:04]} 53. Kd3 {[%emt 0:00:08]} Rxe5 {[%emt 0:00:27]} 54. fxe5 {[%emt 0:00:08]} Rxh2 {[%emt 0:00:05]} 55. Rc6 {[%emt 0:00:56]} Rg2 {[%emt 0:00:31]} 56. Rc7+ {[%emt 0:01:04]} Ke6 {[%emt 0:00:28]} 57. Kxd4 {[%emt 0:03:41]} Rxg3 {[%emt 0:00:07]} 58. Rc6+ {[%emt 0:00:08]} Ke7 {[%emt 0:00:04]} 59. Rxa6 {[%emt 0:00:22]} Rg1 {[%emt 0:00:07]} 60. e6 {[%emt 0:01:15]} Rg5 {[%emt 0:00:13]} 61. e5 {[%emt 0:01:00]} Rg1 {[%emt 0:00:05]} 62. Ke4 {[%emt 0:00:07]} Re1+ {[%emt 0:00:04]} 63. Kf5 {[%emt 0:00:03]} Rf1+ {[%emt 0:00:04]} 64. Kg5 {[%emt 0:00:10]} Rg1+ {[%emt 0:00:05]} 65. Kf5 {[%emt 0:00:03]} Rf1+ {[%emt 0:00:05]} 66. Kg5 {[%emt 0:00:06]} Rg1+ {[%emt 0:00:04]} 67. Kf5 {[%emt 0:00:02]} Rf1+ {[%emt 0:00:05]} 68. Ke4 {[%emt 0:09:35]} 1/2-1/2